fUST/lending_fUST_20251029
["ID","MTS","AMOUNT","RATE_DAILY","PERIOD"]
[392582599,1761687032977,-500.0,0.00022191,2]
[392582600,1761687032987,-524.64,0.00022191,2]
[392582601,1761687032996,-500.0,0.00022191,2]
[392582602,1761687033005,-500.0,0.00022191,2]
[392582603,1761687033016,-500.0,0.00022191,2]
[392582604,1761687033026,-500.0,0.00022191,2]
[392582605,1761687033035,-500.0,0.00022191,2]
[392582606,1761687033045,-500.0,0.00022191,2]
[392582607,1761687033055,-500.0,0.00022191,2]
[392582608,1761687033064,-642.19,0.00022191,2]
[392582609,1761687033074,-500.0,0.00022191,2]
[392582610,1761687033083,-500.0,0.00022191,2]
[392582611,1761687033094,-500.0,0.00022191,2]
[392582612,1761687033104,-500.0,0.00022191,2]
[392582613,1761687033114,-545.69879187,0.00022191,2]
[392582614,1761687033124,-500.0,0.00022191,2]
[392582615,1761687033133,-500.0,0.00022191,2]
[392582616,1761687033143,-500.0,0.00022191,2]
[392582617,1761687033152,-500.0,0.00022191,2]
[392582618,1761687033163,-500.0,0.00022191,2]
[392582619,1761687033172,-500.0,0.00022191,2]
[392582620,1761687033182,-500.0,0.00022191,2]
[392582621,1761687033191,-500.0,0.00022191,2]
[392582622,1761687033201,-500.0,0.00022191,2]
[392582623,1761687033210,-500.0,0.00022191,2]
[392582624,1761687033219,-500.0,0.00022191,2]
[392582625,1761687033229,-500.0,0.00022191,2]
[392582626,1761687033239,-500.0,0.00022191,2]
[392582627,1761687033248,-3409.9,0.00022191,2]
[392582628,1761687033258,-500.0,0.00022191,2]
[392582629,1761687033267,-500.0,0.00022191,2]
[392582630,1761687033275,-659.11,0.00022191,2]
[392582631,1761687033284,-160.0,0.00022381,2]
[392582632,1761687033293,-158.0,0.00022411,7]
[392582633,1761687033303,-18247.9,0.00022455,10]
[392582634,1761687033312,-15206.59,0.00022455,10]
[392582635,1761687033321,-500.0,0.00022465,2]
[392582636,1761687033330,-500.0,0.00022465,2]
[392582637,1761687033339,-253.54658475,0.00022465,2]
[392582638,1761687033348,-500.0,0.00022465,2]
[392582639,1761687033357,-500.0,0.00022465,2]
[392582640,1761687033366,-500.0,0.00022465,2]
[392582641,1761687033378,-524.64,0.00022465,2]
[392582642,1761687033387,-500.0,0.00022465,2]
[392582643,1761687033396,-563.74421995,0.00022465,2]
[392582644,1761687033405,-500.0,0.00022465,2]
[392582645,1761687033415,-500.0,0.00022465,2]
[392582646,1761687033423,-500.0,0.00022465,2]
[392582647,1761687033432,-500.0,0.00022465,2]
[392582648,1761687033441,-500.0,0.00022465,2]
[392582649,1761687033451,-642.19,0.00022465,2]
[392582650,1761687033460,-500.0,0.00022465,2]
[392582651,1761687033470,-500.0,0.00022465,2]
[392582652,1761687033480,-500.0,0.00022465,2]
[392582653,1761687033489,-500.0,0.00022465,2]
[392582654,1761687033498,-500.0,0.00022465,2]
[392582655,1761687033507,-500.0,0.00022465,2]
[392582656,1761687033516,-500.0,0.00022465,2]
[392582657,1761687033525,-500.0,0.00022465,2]
[392582658,1761687033534,-500.0,0.00022465,2]
[392582659,1761687033543,-202.63486778,0.00022465,2]
[392582660,1761687033553,-548.05236266,0.00022465,2]
[392582661,1761687033562,-500.0,0.00022465,2]
[392582662,1761687033571,-500.0,0.00022465,2]
[392582663,1761687033580,-500.0,0.00022465,2]
[392582664,1761687033589,-500.0,0.00022465,2]
[392582665,1761687033602,-500.0,0.00022465,2]
[392582666,1761687033611,-500.0,0.00022465,2]
[392582667,1761687033620,-3409.9,0.00022465,2]
[392582668,1761687033631,-500.0,0.00022465,2]
[392582669,1761687033642,-500.0,0.00022465,2]
[392582670,1761687033651,-659.11,0.00022465,2]
[392582671,1761687033660,-500.06375083,0.00022473,2]
[392582672,1761687033670,-500.0,0.00022473,2]
[392582673,1761687033679,-500.0,0.00022473,2]
[392582674,1761687033688,-158.94902,0.00022656,7]
[392582675,1761687033698,-301.62133976,0.00022676,2]
[392582676,1761687033707,-539.54481959,0.00022739,2]
[392582677,1761687033716,-500.0,0.00022739,2]
[392582678,1761687033726,-500.0,0.00022739,2]
[392582679,1761687033735,-500.0,0.00022739,2]
[392582680,1761687033744,-500.0,0.00022739,2]
[392582681,1761687033753,-524.64,0.00022739,2]
[392582682,1761687033762,-500.0,0.00022739,2]
[392582683,1761687033772,-500.0,0.00022739,2]
[392582684,1761687033781,-500.0,0.00022739,2]
[392582685,1761687033790,-500.0,0.00022739,2]
[392582686,1761687033799,-500.0,0.00022739,2]
[392582687,1761687033808,-500.0,0.00022739,2]
[392582688,1761687033817,-458.38764821,0.00022739,2]
[392582689,1761687033830,-183.80235179,0.00022739,2]
[392582690,1761687033839,-500.0,0.00022739,2]
[392582691,1761687033848,-500.0,0.00022739,2]
[392582692,1761687033858,-500.0,0.00022739,2]
[392582693,1761687033867,-283.44062886,0.00022739,2]
[392582694,1761687033877,-500.0,0.00022739,2]
[392582695,1761687033886,-484.80547819,0.00022739,2]
[392582696,1761687033895,-500.0,0.00022739,2]
[392582697,1761687033906,-500.0,0.00022739,2]
[392582698,1761687033916,-500.0,0.00022739,2]
[392582699,1761687033926,-500.0,0.00022739,2]
[392582700,1761687033935,-500.0,0.00022739,2]
[392582701,1761687033944,-528.59242305,0.00022739,2]
[392582702,1761687033954,-500.0,0.00022739,2]
[392582703,1761687033963,-592.75194584,0.00022739,2]
[392582704,1761687033972,-500.0,0.00022739,2]
[392582705,1761687033981,-3409.9,0.00022739,2]
[392582706,1761687033991,-437.9963055,0.00022739,2]
[392582707,1761687034000,-500.0,0.00022739,2]
[392582708,1761687034010,-659.11,0.00022739,2]
[392582709,1761687034019,-1508.11301029,0.00022779,2]
[392582710,1761687034028,-585.49679291,0.00023013,2]
[392582711,1761687034038,-500.0,0.00023013,2]
[392582712,1761687034047,-500.0,0.00023013,2]
[392582713,1761687034057,-500.0,0.00023013,2]
[392582714,1761687034068,-524.64,0.00023013,2]
[392582715,1761687034077,-320.11286269,0.00023013,2]
[392582716,1761687034087,-500.0,0.00023013,2]
[392582717,1761687034096,-500.0,0.00023013,2]
[392582718,1761687034105,-500.0,0.00023013,2]
[392582719,1761687034115,-500.0,0.00023013,2]
[392582720,1761687034124,-500.0,0.00023013,2]
[392582721,1761687034133,-642.19,0.00023013,2]
[392582722,1761687034143,-511.70443209,0.00023013,2]
[392582723,1761687034152,-500.0,0.00023013,2]
[392582724,1761687034162,-500.0,0.00023013,2]
[392582725,1761687034171,-500.0,0.00023013,2]
[392582726,1761687034181,-463.0,0.00023013,2]
[392582727,1761687034190,-441.74041926,0.00023013,2]
[392582728,1761687034199,-500.0,0.00023013,2]
[392582729,1761687034208,-500.0,0.00023013,2]
[392582730,1761687034218,-627.68834082,0.00023013,2]
[392582731,1761687034228,-500.0,0.00023013,2]
[392582732,1761687034237,-3409.9,0.00023013,2]
[392582733,1761687034246,-500.0,0.00023013,2]
[392582734,1761687034256,-659.11,0.00023013,2]
[392582735,1761687034266,-334.95154104,0.00023021,2]
[392582736,1761687034275,-160.0,0.00023254,2]
[392582737,1761687034285,-500.0,0.00023287,2]
[392582738,1761687034296,-500.0,0.00023287,2]
[392582739,1761687034306,-500.0,0.00023287,2]
[392582740,1761687034315,-524.64,0.00023287,2]
[392582741,1761687034326,-500.0,0.00023287,2]
[392582742,1761687034335,-500.0,0.00023287,2]
[392582743,1761687034344,-500.0,0.00023287,2]
[392582744,1761687034353,-500.0,0.00023287,2]
[392582745,1761687034363,-500.0,0.00023287,2]
[392582746,1761687034372,-642.19,0.00023287,2]
[392582747,1761687034381,-500.0,0.00023287,2]
[392582748,1761687034391,-500.0,0.00023287,2]
[392582749,1761687034400,-361.94528097,0.00023287,2]
[392582750,1761687034409,-500.0,0.00023287,2]
[392582751,1761687034418,-500.0,0.00023287,2]
[392582752,1761687034428,-500.0,0.00023287,2]
[392582753,1761687034437,-3409.9,0.00023287,2]
[392582754,1761687034446,-276.63635343,0.00023287,2]
[392582755,1761687034456,-659.11,0.00023287,2]
[392582756,1761687034465,-412.0,0.00023522,2]
[392582757,1761687034474,-500.0,0.00023561,2]
[392582758,1761687034484,-500.0,0.00023561,2]
[392582759,1761687034494,-500.0,0.00023561,2]
[392582760,1761687034503,-524.64,0.00023561,2]
[392582761,1761687034512,-462.29004304,0.00023561,2]
[392582762,1761687034523,-500.0,0.00023561,2]
[392582763,1761687034532,-500.0,0.00023561,2]
[392582764,1761687034541,-500.0,0.00023561,2]
[392582765,1761687034550,-500.0,0.00023561,2]
[392582766,1761687034559,-642.19,0.00023561,2]
[392582767,1761687034569,-224.12968407,0.00023561,2]
[392582768,1761687034579,-499.65212018,0.00023561,2]
[392582769,1761687034590,-500.0,0.00023561,2]
[392582770,1761687034603,-500.0,0.00023561,2]
[392582771,1761687034613,-310.75729659,0.00023561,2]
[392582772,1761687034623,-3409.9,0.00023561,2]
[392582773,1761687034633,-659.11,0.00023561,2]
[392582774,1761687034643,-1630.4,0.00023714,2]
[392582775,1761687034653,-260.0,0.00023802,2]
[392582776,1761687034663,-500.0,0.00023835,2]
[392582777,1761687034675,-500.0,0.00023835,2]
[392582778,1761687034686,-237.56746049,0.00023835,2]
[392582779,1761687034695,-524.64,0.00023835,2]
[392582780,1761687034705,-500.0,0.00023835,2]
[392582781,1761687034714,-500.0,0.00023835,2]
[392582782,1761687034725,-500.0,0.00023835,2]
[392582783,1761687034735,-500.0,0.00023835,2]
[392582784,1761687034744,-642.19,0.00023835,2]
[392582785,1761687034753,-500.0,0.00023835,2]
[392582786,1761687034764,-273.11989114,0.00023835,2]
[392582787,1761687034775,-3409.9,0.00023835,2]
[392582788,1761687034784,-659.11,0.00023835,2]
[392582789,1761687034793,-864.0,0.00023916,20]
[392582790,1761687034803,-500.0,0.00024109,2]
[392582791,1761687034813,-194.3363767,0.00024109,2]
[392582792,1761687034823,-524.64,0.00024109,2]
[392582793,1761687034833,-500.0,0.00024109,2]
[392582794,1761687034842,-218.38,0.00024109,2]
[392582795,1761687034852,-500.0,0.00024109,2]
[392582796,1761687034862,-500.0,0.00024109,2]
[392582797,1761687034871,-642.19,0.00024109,2]
[392582798,1761687034881,-500.0,0.00024109,2]
[392582799,1761687034890,-3409.9,0.00024109,2]
[392582800,1761687034900,-659.11,0.00024109,2]
[392582801,1761687034910,-24684.09,0.000242,7]
[392582802,1761687034921,-360.0,0.00024349,2]
[392582803,1761687034931,-500.0,0.00024382,2]
[392582804,1761687034942,-500.0,0.00024383,2]
[392582805,1761687034953,-524.64,0.00024383,2]
[392582806,1761687034963,-500.0,0.00024383,2]
[392582807,1761687034974,-579.27128603,0.00024383,2]
[392582808,1761687034983,-500.0,0.00024383,2]
[392582809,1761687034993,-642.19,0.00024383,2]
[392582810,1761687035003,-500.0,0.00024383,2]
[392582811,1761687035014,-3409.9,0.00024383,2]
[392582812,1761687035024,-659.11,0.00024383,2]
[392582813,1761687035034,-500.0,0.00024403,2]
[392582814,1761687035044,-500.0,0.00024435,2]
[392582815,1761687035054,-500.0,0.00024503,2]
[392582816,1761687035064,-500.0,0.00024534,2]
[392582817,1761687035074,-3389.86101888,0.00024607,2]
[392582818,1761687035084,-1075.37956424,0.00024624,2]
[392582819,1761687035094,-500.0,0.00024657,2]
[392582820,1761687035106,-524.64,0.00024657,2]
[392582821,1761687035119,-500.0,0.00024657,2]
[392582822,1761687035129,-500.0,0.00024657,2]
[392582823,1761687035139,-642.19,0.00024657,2]
[392582824,1761687035150,-500.0,0.00024657,2]
[392582825,1761687035159,-3409.9,0.00024657,2]
[392582826,1761687035168,-659.11,0.00024657,2]
[392582827,1761687035187,-341.54181119,0.00024676,2]
[392582828,1761687035198,-171.79187941,0.00024824,2]
[392582829,1761687035208,-500.0,0.00024873,2]
[392582830,1761687035218,-500.0,0.00024873,2]
[392582831,1761687035227,-500.0,0.00024873,2]
[392582832,1761687035238,-460.0,0.00024897,2]
[392582833,1761687035249,-614420.691998,0.000249,2]
[392582834,1761687035260,-545.53294307,0.00024931,2]
[392582835,1761687035272,-524.64,0.00024931,2]
[392582836,1761687035282,-500.0,0.00024931,2]
[392582837,1761687035292,-500.0,0.00024931,2]
[392582838,1761687035303,-642.19,0.00024931,2]
[392582839,1761687035312,-500.0,0.00024931,2]
[392582840,1761687035322,-3409.9,0.00024931,2]
[392582841,1761687035332,-659.11,0.00024931,2]
[392582842,1761687035343,-154.621,0.00024987,8]
[392582843,1761687035353,-206.031462,0.00025,2]
[392582844,1761687035363,-1134.0,0.000251,2]
[392582845,1761687035373,-524.64,0.00025205,2]
[392582846,1761687035383,-500.0,0.00025205,2]
[392582847,1761687035393,-500.0,0.00025205,2]
[392582848,1761687035403,-642.19,0.00025205,2]
[392582849,1761687035413,-500.0,0.00025205,2]
[392582850,1761687035426,-3409.9,0.00025205,2]
[392582851,1761687035437,-659.11,0.00025205,2]
[392582852,1761687035447,-500.0,0.00025356,2]
[392582853,1761687035457,-1000.0,0.00025421,2]
[392582854,1761687035466,-1000.0,0.00025421,2]
[392582855,1761687035476,-1000.0,0.00025421,2]
[392582856,1761687035486,-560.0,0.00025445,2]
[392582857,1761687035495,-524.64,0.00025479,2]
[392582858,1761687035505,-500.0,0.00025479,2]
[392582859,1761687035516,-500.0,0.00025479,2]
[392582860,1761687035526,-642.19,0.00025479,2]
[392582861,1761687035536,-500.0,0.00025479,2]
[392582862,1761687035547,-3409.9,0.00025479,2]
[392582863,1761687035557,-659.11,0.00025479,2]
[392582864,1761687035567,-2445.6,0.0002569,2]
[392582865,1761687035578,-24684.09,0.000257,7]
[392582866,1761687035589,-524.64,0.00025753,2]
[392582867,1761687035603,-154.59621836,0.00025753,2]
[392582868,1761687035613,-500.0,0.00025753,2]
[392582869,1761687035624,-642.19,0.00025753,2]
[392582870,1761687035634,-500.0,0.00025753,2]
[392582871,1761687035646,-3409.9,0.00025753,2]
[392582872,1761687035656,-659.11,0.00025753,2]
[392582873,1761687035667,-1614.38879108,0.00025968,2]
[392582874,1761687035680,-1500.0,0.00025968,2]
[392582875,1761687035690,-1500.0,0.00025968,2]
[392582876,1761687035700,-660.0,0.00025993,2]
[392582877,1761687035710,-524.64,0.00026027,2]
[392582878,1761687035720,-500.0,0.00026027,2]
[392582879,1761687035730,-642.19,0.00026027,2]
[392582880,1761687035739,-500.0,0.00026027,2]
[392582881,1761687035750,-3409.9,0.00026027,2]
[392582882,1761687035759,-659.11,0.00026027,2]
[392582883,1761687035770,-1134.0,0.000261,2]
[392582884,1761687035780,-524.64,0.00026301,2]
[392582885,1761687035789,-500.0,0.00026301,2]
[392582886,1761687035799,-642.19,0.00026301,2]
[392582887,1761687035809,-500.0,0.00026301,2]
[392582888,1761687035819,-3409.9,0.00026301,2]
[392582889,1761687035829,-659.11,0.00026301,2]
[392582890,1761687035838,-1000.0,0.00026308,30]
[392582891,1761687035848,-500.0,0.00026485,7]
[392582892,1761687035858,-2000.0,0.00026516,2]
[392582893,1761687035868,-2000.0,0.00026516,2]
[392582894,1761687035878,-412.0,0.00026522,2]
[392582895,1761687035888,-760.0,0.00026541,2]
[392582896,1761687035898,-305.19014697,0.00026575,2]
[392582897,1761687035909,-1219.53982729,0.00026575,2]
[392582898,1761687035919,-583.95564185,0.00026575,2]
[392582899,1761687035929,-2333.48674483,0.00026575,2]
[392582900,1761687035939,-524.64,0.00026575,2]
[392582901,1761687035949,-500.0,0.00026575,2]
[392582902,1761687035960,-642.19,0.00026575,2]
[392582903,1761687035970,-500.0,0.00026575,2]
[392582904,1761687035980,-3409.9,0.00026575,2]
[392582905,1761687035991,-892.97484182,0.00026672,7]
[392582906,1761687036001,-381.46228263,0.00026676,2]
[392582907,1761687036013,-524.64,0.00026849,2]
[392582908,1761687036022,-524.07131738,0.00026849,2]
[392582909,1761687036032,-642.19,0.00026849,2]
[392582910,1761687036042,-290.80602276,0.00026849,2]
[392582911,1761687036055,-3409.9,0.00026849,2]
[392582912,1761687036065,-500.0,0.00026873,2]
[392582913,1761687036075,-150.0,0.00026873,2]
[392582914,1761687036085,-370000.0,0.000269,2]
[392582915,1761687036095,-112194.44678928,0.00027,2]
[392582916,1761687036105,-126380.03819776,0.00027,30]
[392582917,1761687036115,-500.0,0.00027036,7]
[392582918,1761687036125,-2500.0,0.00027064,2]
[392582919,1761687036135,-2500.0,0.00027064,2]
[392582920,1761687036145,-860.0,0.00027089,2]
[392582921,1761687036154,-1134.0,0.000271,2]
[392582922,1761687036164,-959.62,0.00027123,2]
[392582923,1761687036174,-524.64,0.00027123,2]
[392582924,1761687036184,-642.19,0.00027123,2]
[392582925,1761687036194,-3409.9,0.00027123,2]
[392582926,1761687036204,-1009.0200643,0.00027123,3]
[392582927,1761687036213,-500.0,0.00027247,12]
[392582928,1761687036223,-2497.21752686,0.00027297,10]
[392582929,1761687036232,-24684.09,0.000273,7]
[392582930,1761687036242,-318.94564651,0.00027376,13]
[392582931,1761687036251,-262.00000214,0.00027376,14]
[392582932,1761687036261,-150.0,0.0002739,2]
[392582933,1761687036270,-198.90968687,0.0002739,2]
[392582934,1761687036280,-225.85356052,0.00027397,2]
[392582935,1761687036289,-1000.0,0.00027397,2]
[392582936,1761687036300,-959.62,0.00027397,2]
[392582937,1761687036309,-884.95072051,0.00027397,2]
[392582938,1761687036319,-524.64,0.00027397,2]
[392582939,1761687036331,-642.19,0.00027397,2]
[392582940,1761687036340,-151.0,0.00027397,2]
[392582941,1761687036350,-3409.9,0.00027397,2]
[392582942,1761687036360,-170.89499748,0.00027397,2]
[392582943,1761687036370,-426.669,0.00027397,30]
[392582944,1761687036379,-249.99,0.00027397,60]
[392582945,1761687036389,-150.0,0.00027397,5]
[392582946,1761687036401,-150.0,0.00027397,5]
[392582947,1761687036413,-9681.91,0.000274,2]
[392582948,1761687036424,-3535.16,0.000274,7]
[392582949,1761687036433,-435.1975329,0.00027421,5]
[392582950,1761687036443,-250.0,0.00027421,5]
[392582951,1761687036453,-4980.09103964,0.00027421,2]
[392582952,1761687036463,-151.0,0.00027452,2]
[392582953,1761687036473,-45589.23437465,0.000275,2]
[392582954,1761687036483,-151.0,0.00027507,2]
[392582955,1761687036493,-500.0,0.00027548,7]
[392582956,1761687036502,-235.53145315,0.00027561,2]
[392582957,1761687036513,-5107.63523517,0.00027562,11]
[392582958,1761687036523,-3242.75007469,0.00027565,16]
[392582959,1761687036533,-434.83384171,0.00027565,15]
[392582960,1761687036543,-1112.09845346,0.00027612,5]
[392582961,1761687036552,-3000.0,0.00027612,5]
[392582962,1761687036562,-500.0,0.00027632,7]
[392582963,1761687036571,-960.0,0.00027637,2]
[392582964,1761687036581,-3260.8,0.00027667,2]
[392582965,1761687036594,-3891.88747908,0.0002767,13]
[392582966,1761687036607,-1000.0,0.00027671,2]
[392582967,1761687036617,-959.62,0.00027671,2]
[392582968,1761687036628,-522.39,0.00027671,7]
[392582969,1761687036639,-524.64,0.00027671,2]
[392582970,1761687036649,-642.19,0.00027671,2]
[392582971,1761687036659,-3409.9,0.00027671,2]
[392582972,1761687036669,-500.0,0.00027766,7]
[392582973,1761687036680,-500.0,0.0002778,7]
[392582974,1761687036690,-25051.0,0.0002787,2]
[392582975,1761687036702,-500.0,0.00027872,5]
[392582976,1761687036712,-3535.16,0.000279,7]
[392582977,1761687036723,-1000.0,0.00027945,2]
[392582978,1761687036734,-959.62,0.00027945,2]
[392582979,1761687036745,-522.39,0.00027945,8]
[392582980,1761687036754,-524.64,0.00027945,2]
[392582981,1761687036764,-642.19,0.00027945,2]
[392582982,1761687036774,-3409.9,0.00027945,2]
[392582983,1761687036784,-250.0,0.00027945,5]
[392582984,1761687036793,-250.0,0.00027945,5]
[392582985,1761687036803,-153.357761,0.00027952,7]
[392582986,1761687036812,-350.0,0.00027968,5]
[392582987,1761687036823,-15205.41891352,0.00028,2]
[392582988,1761687036835,-1628.48700208,0.00028,2]
[392582989,1761687036845,-203.15488198,0.00028,2]
[392582990,1761687036855,-639.50762565,0.00028023,7]
[392582991,1761687036865,-1134.0,0.000281,2]
[392582992,1761687036875,-782.0,0.00028124,7]
[392582993,1761687036885,-3500.0,0.0002816,5]
[392582994,1761687036895,-1060.0,0.00028185,2]
[392582995,1761687036906,-9681.91,0.000282,2]
[392582996,1761687036916,-1000.0,0.00028219,2]
[392582997,1761687036926,-959.7725206,0.00028219,2]
[392582998,1761687036936,-522.39,0.00028219,9]
[392582999,1761687036947,-524.86342289,0.00028219,2]
[392583000,1761687036958,-642.25643207,0.00028219,2]
[392583001,1761687036969,-3409.91171461,0.00028219,2]
[392583002,1761687036979,-643.29187018,0.00028407,7]
[392583003,1761687036990,-163.0,0.00028438,29]
[392583004,1761687037000,-1500.0,0.00028468,5]
[392583005,1761687037011,-1000.0,0.00028493,2]
[392583006,1761687037199,-522.39,0.00028493,10]
[392583007,1761687037213,-350.0,0.00028493,5]
[392583008,1761687037223,-350.0,0.00028493,5]
[392583009,1761687037232,-10058.17466513,0.000285,7]
[392583010,1761687037247,-84628.69158969,0.000285,7]
[392583011,1761687037256,-450.0,0.00028516,5]
[392583012,1761687037266,-3535.16,0.000286,7]
[392583013,1761687037275,-7586.14839676,0.000286,7]
[392583027,1761687038092,-464.58,0.00026575,2]
[392583028,1761687038105,-194.53,0.00026575,2]
[392583029,1761687038115,-659.11,0.00026849,2]
[392583030,1761687038124,-290.84450276,0.00027123,2]
[392583031,1761687038136,-368.26549724,0.00027123,2]
[392583032,1761687038146,-659.11,0.00027397,2]
[392583033,1761687038156,-659.11,0.00027671,2]
[392583034,1761687038165,-527.86386433,0.00027945,2]
[392583076,1761687040474,-131.24613567,0.00027945,2]
[392583077,1761687040484,-659.22613943,0.00028219,2]
[392583079,1761687040493,-876.60183803,0.000286,7]
[392583080,1761687040504,-552.66422269,0.000286,7]
[392583098,1761687046214,-200.0,0.00027945,2]
[392583099,1761687046224,-15668.67554252,0.000286,7]
[392583100,1761687046234,-421.38275407,0.00028676,2]
[392583101,1761687046243,-2928.04159641,0.00028708,5]
[392583105,1761687048066,-563.7,0.00028708,5]
[392583241,1761688019176,-500.0,0.00018999,2]
[392583242,1761688019196,-183.19060782,0.00019487,2]
[392583243,1761688019219,-1000.0,0.00020943,2]
[392583244,1761688019238,-171.038861,0.0002095,2]
[392583245,1761688019259,-216.16491723,0.00021487,2]
[392583246,1761688019279,-412.0,0.00021632,2]
[392583247,1761688019298,-1029.0,0.00021915,2]
[392583248,1761688019318,-1200.0,0.00021915,2]
[392583249,1761688019338,-500.0,0.00021916,2]
[392583250,1761688019360,-300.0,0.00021916,2]
[392583251,1761688019380,-500.0,0.00021917,2]
[392583252,1761688019400,-516.33,0.00021917,2]
[392583253,1761688019420,-500.0,0.00021979,2]
[392583254,1761688019441,-500.0,0.00021979,2]
[392583255,1761688019465,-500.0,0.00021979,2]
[392583256,1761688019489,-498.50815463,0.0002208,2]
[392583257,1761688019513,-394.19561963,0.0002208,2]
[392583258,1761688019535,-5330.51198569,0.00022081,10]
[392583299,1761688233106,-839.99,0.00021737,2]
[392583300,1761688233116,-175.20349732,0.00021858,2]
[392583301,1761688233125,-376.64545731,0.00021916,2]
[392583302,1761688233165,-123.35454269,0.00021916,2]
[392583303,1761688233174,-500.0,0.00021979,2]
[392583304,1761688233183,-500.0,0.0002208,2]
[392583305,1761688233193,-300.0,0.0002208,2]
[392583306,1761688233203,-762.98,0.00022081,3]
[392583307,1761688233212,-12481.23,0.00022081,10]
[392583308,1761688233222,-10401.03,0.00022081,10]
[392583309,1761688233231,-269.6213378,0.0002209,2]
[392583310,1761688233241,-500.0,0.0002209,2]
[392583311,1761688233251,-500.0,0.0002209,2]
[392583312,1761688233260,-500.0,0.0002209,2]
[392583313,1761688233270,-500.0,0.0002209,2]
[392583314,1761688233279,-500.0,0.0002209,2]
[392583315,1761688233289,-500.0,0.0002209,2]
[392583317,1761688233299,-500.0,0.0002209,2]
[392583319,1761688233308,-500.0,0.0002209,2]
[392583321,1761688233317,-500.0,0.0002209,2]
[392583324,1761688233327,-500.0,0.0002209,2]
[392583325,1761688233336,-500.0,0.0002209,2]
[392583326,1761688233346,-500.0,0.0002209,2]
[392583327,1761688233355,-360.68267624,0.0002209,2]
[392583328,1761688233364,-6655.13253812,0.0002209,2]
[392583329,1761688233381,-300.0,0.0002209,2]
[392583330,1761688233397,-305.57180953,0.0002209,2]
[392583346,1761688238239,-500.0,0.00021917,2]
[392583347,1761688238249,-8667.52,0.00022081,10]
[392583348,1761688238260,-2118.4681774,0.0002209,2]
[392583441,1761688243619,-1583.437794,0.0002209,2]
[392583442,1761688243630,-892.70377426,0.0002209,2]
[392583466,1761688497918,740.73485,0.00013699,2]
[392583526,1761689225206,-643.38463956,0.00018444,2]
[392583527,1761689225228,-165.59729,0.0001863,2]
[392583528,1761689225251,-171.69942738,0.00018765,2]
[392583529,1761689225278,-205.77445225,0.00018899,2]
[392583530,1761689225302,-740.73485,0.00020187,2]
[392583531,1761689225326,-504.836022,0.00020691,2]
[392583532,1761689225350,-202.6053243,0.00020765,2]
[392583533,1761689225372,-150.0,0.00021,2]
[392583534,1761689225392,-1082.10471026,0.00021447,2]
[392583535,1761689225427,-412.0,0.00021632,2]
[392583536,1761689225452,-851.76,0.00021722,2]
[392583537,1761689225473,-300.0,0.00021805,2]
[392583538,1761689225494,-171.79187941,0.00021806,2]
[392583539,1761689225515,-11083.33088451,0.00021806,2]
[392583558,1761689432631,-643.38463956,0.00021372,5]
[392583560,1761689432641,-164.21333234,0.0002148,2]
[392583561,1761689432651,-643.38463956,0.00021588,2]